[Event "*** SCC Grand Prix: Titled Tuesday Blitz"]
[Site "Chess.com"]
[Date "2020.06.09"]
[Round "7"]
[White "Nara_Kh"]
[Black "NM2019"]
[Result "1-0"]
[WhiteElo "2268"]
[BlackElo "2015"]
[TimeControl "180+1"]
[EndTime "10:19:44 PDT"]
[Termination "Nara_Kh won by resignation"]

1. e4 {[%clk 0:03:00.9]} 1... c5 {[%clk 0:02:46.9]} 2. Nf3 {[%clk 0:02:56]} 2...
d6 {[%clk 0:02:47.1]} 3. Bb5+ {[%clk 0:02:54.8]} 3... Nd7 {[%clk 0:02:46.7]} 4.
O-O {[%clk 0:02:52.6]} 4... a6 {[%clk 0:02:47.2]} 5. Bd3 {[%clk 0:02:51.1]} 5...
Ngf6 {[%clk 0:02:45.8]} 6. Re1 {[%clk 0:02:47.7]} 6... e5 {[%clk 0:02:45]} 7. c3
{[%clk 0:02:45.4]} 7... b5 {[%clk 0:02:44.1]} 8. Bc2 {[%clk 0:02:36.9]} 8... Be7
{[%clk 0:02:44.1]} 9. d4 {[%clk 0:02:31.1]} 9... Bb7 {[%clk 0:02:43.9]} 10. h3
{[%clk 0:02:24]} 10... O-O {[%clk 0:02:40.8]} 11. Nbd2 {[%clk 0:02:14.1]} 11...
Rc8 {[%clk 0:02:40]} 12. d5 {[%clk 0:02:04.5]} 12... Ne8 {[%clk 0:02:39]} 13. a4
{[%clk 0:02:01.2]} 13... g6 {[%clk 0:02:34.6]} 14. Nf1 {[%clk 0:01:44.6]} 14...
Ng7 {[%clk 0:02:31.7]} 15. c4 {[%clk 0:01:42.1]} 15... bxc4 {[%clk 0:02:28.1]}
16. Ne3 {[%clk 0:01:39.7]} 16... f5 {[%clk 0:02:26.5]} 17. Nxc4 {[%clk
0:01:33.4]} 17... f4 {[%clk 0:02:24.6]} 18. a5 {[%clk 0:01:27.5]} 18... g5
{[%clk 0:02:20.5]} 19. Nh2 {[%clk 0:01:17.7]} 19... Qe8 {[%clk 0:02:20]} 20. Ba4
{[%clk 0:01:14.9]} 20... Rc7 {[%clk 0:02:04.3]} 21. Nb6 {[%clk 0:01:11]} 21...
Bc8 {[%clk 0:01:59.7]} 22. f3 {[%clk 0:00:52.8]} 22... Qd8 {[%clk 0:01:59]} 23.
Nxc8 {[%clk 0:00:44.4]} 23... Rxc8 {[%clk 0:01:45]} 24. Bd2 {[%clk 0:00:40.7]}
24... h5 {[%clk 0:01:42.5]} 25. Rc1 {[%clk 0:00:33.5]} 25... Nf6 {[%clk
0:01:41.2]} 26. b4 {[%clk 0:00:29.8]} 26... cxb4 {[%clk 0:01:38.6]} 27. Bxb4
{[%clk 0:00:26.2]} 27... Rxc1 {[%clk 0:01:36.5]} 28. Qxc1 {[%clk 0:00:25.6]}
28... g4 {[%clk 0:01:37]} 29. hxg4 {[%clk 0:00:22.5]} 29... hxg4 {[%clk
0:01:36.9]} 30. fxg4 {[%clk 0:00:22.8]} 30... Qc8 {[%clk 0:01:27.6]} 31. Qxc8
{[%clk 0:00:20.4]} 31... Rxc8 {[%clk 0:01:27.7]} 32. Bc6 {[%clk 0:00:21]} 32...
Rb8 {[%clk 0:01:24.2]} 33. Bd2 {[%clk 0:00:20]} 33... Rb2 {[%clk 0:01:22.3]} 34.
Bc3 {[%clk 0:00:20.3]} 34... Rb3 {[%clk 0:01:16.9]} 35. Bd2 {[%clk 0:00:19.9]}
35... Rd3 {[%clk 0:01:14.6]} 36. Bc1 {[%clk 0:00:18.6]} 36... Rd4 {[%clk
0:01:14.4]} 37. Nf3 {[%clk 0:00:17.7]} 37... Rxe4 {[%clk 0:01:12]} 38. Rxe4
{[%clk 0:00:17.5]} 38... Nxe4 {[%clk 0:01:12.2]} 39. Bb7 {[%clk 0:00:18.4]}
39... Nc5 {[%clk 0:01:11.2]} 40. Bc8 {[%clk 0:00:18.8]} 40... Bd8 {[%clk
0:01:05.4]} 41. Ba3 {[%clk 0:00:17.2]} 41... Bxa5 {[%clk 0:01:04.4]} 42. Bxc5
{[%clk 0:00:17.2]} 42... dxc5 {[%clk 0:01:04.5]} 43. Nxe5 {[%clk 0:00:17.8]}
43... Bb6 {[%clk 0:01:01.5]} 44. Nc4 {[%clk 0:00:17.7]} 44... Ba7 {[%clk
0:00:59.9]} 45. d6 {[%clk 0:00:17.7]} 45... Kf7 {[%clk 0:00:59.3]} 46. Bxa6
{[%clk 0:00:17.4]} 46... Ke6 {[%clk 0:00:57.8]} 47. Bc8+ {[%clk 0:00:17]} 47...
Kf7 {[%clk 0:00:51.5]} 48. d7 {[%clk 0:00:16.4]} 48... Ke7 {[%clk 0:00:50.1]}
49. Kf2 {[%clk 0:00:14.7]} 49... Ne6 {[%clk 0:00:49.1]} 50. Kf3 {[%clk
0:00:14.3]} 50... Bb8 {[%clk 0:00:46.6]} 51. Na5 {[%clk 0:00:13.8]} 51... Ng5+
{[%clk 0:00:43.7]} 52. Ke2 {[%clk 0:00:13.3]} 52... Bc7 {[%clk 0:00:42.6]} 53.
Nc6+ {[%clk 0:00:13]} 53... Kd6 {[%clk 0:00:40.7]} 54. d8=Q+ {[%clk 0:00:13.2]}
54... Bxd8 {[%clk 0:00:41.2]} 55. Nxd8 {[%clk 0:00:12.8]} 55... Kc7 {[%clk
0:00:40.3]} 56. Ne6+ {[%clk 0:00:12.9]} 56... Nxe6 {[%clk 0:00:40.1]} 57. Bxe6
{[%clk 0:00:13]} 57... Kd6 {[%clk 0:00:40.1]} 58. Bc4 {[%clk 0:00:12.9]} 1-0

[Event "*** SCC Grand Prix: Titled Tuesday Blitz"]
[Site "Chess.com"]
[Date "2020.06.09"]
[Round "7"]
[White "2008king"]
[Black "woodhy"]
[Result "0-1"]
[WhiteElo "2194"]
[BlackElo "2464"]
[TimeControl "180+1"]
[EndTime "10:19:46 PDT"]
[Termination "woodhy won by checkmate"]

1. e4 {[%clk 0:03:00.9]} 1... e6 {[%clk 0:02:36.9]} 2. d4 {[%clk 0:02:59.4]}
2... d5 {[%clk 0:02:36.4]} 3. Nc3 {[%clk 0:02:59.1]} 3... Bb4 {[%clk 0:02:35.1]}
4. exd5 {[%clk 0:02:58.4]} 4... exd5 {[%clk 0:02:33.5]} 5. Bd3 {[%clk
0:02:58.6]} 5... Ne7 {[%clk 0:02:32.9]} 6. a3 {[%clk 0:02:40.2]} 6... Bd6 {[%clk
0:02:30.5]} 7. Nge2 {[%clk 0:02:37]} 7... O-O {[%clk 0:02:28.2]} 8. O-O {[%clk
0:02:37.2]} 8... Bf5 {[%clk 0:02:21.6]} 9. Bg5 {[%clk 0:02:29.3]} 9... Bxd3
{[%clk 0:02:17.6]} 10. Qxd3 {[%clk 0:02:30.2]} 10... h6 {[%clk 0:02:16.9]} 11.
Bf4 {[%clk 0:02:29.8]} 11... c6 {[%clk 0:02:13.8]} 12. Rfe1 {[%clk 0:02:22.5]}
12... Ng6 {[%clk 0:02:13.1]} 13. Bg3 {[%clk 0:02:09.3]} 13... Qf6 {[%clk
0:02:09]} 14. Rad1 {[%clk 0:02:05.9]} 14... Nd7 {[%clk 0:02:06.8]} 15. Bxd6
{[%clk 0:01:57.1]} 15... Qxd6 {[%clk 0:02:07.7]} 16. Qg3 {[%clk 0:01:57.4]}
16... Qf6 {[%clk 0:01:47.4]} 17. Nc1 {[%clk 0:01:46.1]} 17... Nb6 {[%clk
0:01:39.9]} 18. b3 {[%clk 0:01:43]} 18... Rfe8 {[%clk 0:01:36.9]} 19. h3 {[%clk
0:01:14.6]} 19... Rxe1+ {[%clk 0:01:33.1]} 20. Rxe1 {[%clk 0:01:15.5]} 20...
Qxd4 {[%clk 0:01:32.6]} 21. Qe3 {[%clk 0:01:04.3]} 21... Qxe3 {[%clk 0:01:30.8]}
22. fxe3 {[%clk 0:01:05.2]} 22... Re8 {[%clk 0:01:29.8]} 23. Nd3 {[%clk
0:01:05.4]} 23... Ne5 {[%clk 0:01:28]} 24. e4 {[%clk 0:01:02.2]} 24... Nxd3
{[%clk 0:01:22.6]} 25. cxd3 {[%clk 0:01:03.1]} 25... dxe4 {[%clk 0:01:22.7]} 26.
dxe4 {[%clk 0:01:04]} 26... Nd7 {[%clk 0:01:21.8]} 27. Kf2 {[%clk 0:01:01.4]}
27... Nc5 {[%clk 0:01:18.5]} 28. Re3 {[%clk 0:00:52.4]} 28... Nxb3 {[%clk
0:01:15.1]} 29. Na4 {[%clk 0:00:52.4]} 29... Nd2 {[%clk 0:01:13.1]} 30. Nc3
{[%clk 0:00:49.7]} 30... Nc4 {[%clk 0:01:12.1]} 31. Rd3 {[%clk 0:00:48.2]} 31...
Ne5 {[%clk 0:00:56.4]} 32. Rd1 {[%clk 0:00:44]} 32... Kf8 {[%clk 0:00:56.1]} 33.
Na4 {[%clk 0:00:42]} 33... b6 {[%clk 0:00:52.8]} 34. Nc3 {[%clk 0:00:42.3]}
34... Ke7 {[%clk 0:00:52.4]} 35. Ke3 {[%clk 0:00:42.3]} 35... Rd8 {[%clk
0:00:49.7]} 36. Rxd8 {[%clk 0:00:39.2]} 36... Kxd8 {[%clk 0:00:50.6]} 37. Kd4
{[%clk 0:00:39.1]} 37... f6 {[%clk 0:00:50.4]} 38. Ne2 {[%clk 0:00:37.8]} 38...
Kd7 {[%clk 0:00:49.6]} 39. Nf4 {[%clk 0:00:37.6]} 39... g5 {[%clk 0:00:46.7]}
40. Nh5 {[%clk 0:00:35.7]} 40... Ke7 {[%clk 0:00:40.2]} 41. Ng3 {[%clk
0:00:35.4]} 41... Nf7 {[%clk 0:00:37.8]} 42. Nf5+ {[%clk 0:00:34.3]} 42... Ke6
{[%clk 0:00:37.7]} 43. Ng7+ {[%clk 0:00:34.3]} 43... Kd7 {[%clk 0:00:35.4]} 44.
g4 {[%clk 0:00:33.8]} 44... a5 {[%clk 0:00:33.7]} 45. Nf5 {[%clk 0:00:33]} 45...
Ke6 {[%clk 0:00:30.5]} 46. Ng7+ {[%clk 0:00:32.8]} 46... Kd6 {[%clk 0:00:28.7]}
47. Nf5+ {[%clk 0:00:33.1]} 47... Kd7 {[%clk 0:00:29]} 48. Ng7 {[%clk
0:00:30.1]} 48... Nd6 {[%clk 0:00:27.8]} 49. Nh5 {[%clk 0:00:25.2]} 49... Ke6
{[%clk 0:00:27.1]} 50. Ng7+ {[%clk 0:00:24.9]} 50... Kf7 {[%clk 0:00:26.7]} 51.
Nh5 {[%clk 0:00:24.5]} 51... Nb5+ {[%clk 0:00:23.8]} 52. Ke3 {[%clk 0:00:17.6]}
52... Nxa3 {[%clk 0:00:24.7]} 53. e5 {[%clk 0:00:17.8]} 53... Nc4+ {[%clk
0:00:24.2]} 54. Kd4 {[%clk 0:00:15.1]} 54... Nxe5 {[%clk 0:00:25.1]} 55. Ng3
{[%clk 0:00:15.2]} 55... Ke6 {[%clk 0:00:25]} 56. Nf5 {[%clk 0:00:16.1]} 56...
c5+ {[%clk 0:00:24.8]} 57. Kc3 {[%clk 0:00:15.5]} 57... b5 {[%clk 0:00:23.2]}
58. Ng7+ {[%clk 0:00:15]} 58... Kd5 {[%clk 0:00:21.5]} 59. Nf5 {[%clk
0:00:15.9]} 59... a4 {[%clk 0:00:20.9]} 60. Nxh6 {[%clk 0:00:16.1]} 60... b4+
{[%clk 0:00:20.2]} 61. Kb2 {[%clk 0:00:17]} 61... a3+ {[%clk 0:00:21]} 62. Kb1
{[%clk 0:00:15.6]} 62... b3 {[%clk 0:00:19.9]} 63. Nf5 {[%clk 0:00:14.9]} 63...
c4 {[%clk 0:00:18.3]} 64. Ne3+ {[%clk 0:00:14.4]} 64... Kd4 {[%clk 0:00:18.2]}
65. Nd1 {[%clk 0:00:13.4]} 65... c3 {[%clk 0:00:17.4]} 66. Nxc3 {[%clk
0:00:13.7]} 66... Kxc3 {[%clk 0:00:16.8]} 67. h4 {[%clk 0:00:14.6]} 67... b2
{[%clk 0:00:16.2]} 68. h5 {[%clk 0:00:14.5]} 68... Kb3 {[%clk 0:00:16]} 69. h6
{[%clk 0:00:14.4]} 69... a2# {[%clk 0:00:16.9]} 0-1

[Event "*** SCC Grand Prix: Titled Tuesday Blitz"]
[Site "Chess.com"]
[Date "2020.06.09"]
[Round "7"]
[White "Rish_97"]
[Black "RaphCamora"]
[Result "1-0"]
[WhiteElo "2698"]
[BlackElo "2482"]
[TimeControl "180+1"]
[EndTime "10:19:48 PDT"]
[Termination "Rish_97 won by resignation"]

1. e4 {[%clk 0:03:00.1]} 1... c5 {[%clk 0:02:58.3]} 2. Nf3 {[%clk 0:03:00]} 2...
Nc6 {[%clk 0:02:57]} 3. Nc3 {[%clk 0:02:57.2]} 3... e5 {[%clk 0:02:55.4]} 4. Bc4
{[%clk 0:02:56.9]} 4... g6 {[%clk 0:02:55.6]} 5. d3 {[%clk 0:02:51.9]} 5... h6
{[%clk 0:02:53.4]} 6. h4 {[%clk 0:02:36.1]} 6... Bg7 {[%clk 0:02:52.5]} 7. Nd5
{[%clk 0:02:21.9]} 7... Nge7 {[%clk 0:02:49.4]} 8. h5 {[%clk 0:02:19.6]} 8... g5
{[%clk 0:02:46.9]} 9. Nxg5 {[%clk 0:02:11.3]} 9... hxg5 {[%clk 0:02:19.8]} 10.
Bxg5 {[%clk 0:02:09.5]} 10... d6 {[%clk 0:02:19.5]} 11. h6 {[%clk 0:01:44.3]}
11... Qa5+ {[%clk 0:01:56.6]} 12. Bd2 {[%clk 0:01:17.1]} 12... Qxd2+ {[%clk
0:01:10.5]} 13. Qxd2 {[%clk 0:01:15.7]} 13... Nxd5 {[%clk 0:01:10.2]} 14. exd5
{[%clk 0:01:03]} 14... Ne7 {[%clk 0:01:07.1]} 15. Bb5+ {[%clk 0:00:53.6]} 15...
Bd7 {[%clk 0:01:04.7]} 16. Bxd7+ {[%clk 0:00:37.6]} 16... Kxd7 {[%clk
0:01:05.6]} 17. Qg5 {[%clk 0:00:37.6]} 17... Rag8 {[%clk 0:00:49.7]} 18. Qd2
{[%clk 0:00:32.8]} 18... Bf6 {[%clk 0:00:47.8]} 19. g3 {[%clk 0:00:27.6]} 19...
Nxd5 {[%clk 0:00:46.7]} 20. Qe2 {[%clk 0:00:25.2]} 20... Ne7 {[%clk 0:00:43.2]}
21. Qf3 {[%clk 0:00:23.5]} 21... Ke6 {[%clk 0:00:41.2]} 22. O-O-O {[%clk
0:00:21.6]} 22... d5 {[%clk 0:00:37.8]} 23. Kb1 {[%clk 0:00:21.5]} 23... Nf5
{[%clk 0:00:34.2]} 24. c4 {[%clk 0:00:19.9]} 24... Ne7 {[%clk 0:00:31]} 25.
cxd5+ {[%clk 0:00:19.6]} 25... Nxd5 {[%clk 0:00:31.9]} 26. Rc1 {[%clk
0:00:18.4]} 26... b6 {[%clk 0:00:28.5]} 27. h7 {[%clk 0:00:18.8]} 27... Rg7
{[%clk 0:00:27.5]} 28. Rh5 {[%clk 0:00:19.5]} 28... Ne7 {[%clk 0:00:16.4]} 29.
Rh6 {[%clk 0:00:19.2]} 29... Rg6 {[%clk 0:00:15.9]} 30. Rxg6 {[%clk 0:00:19.3]}
30... fxg6 {[%clk 0:00:16.8]} 31. Rh1 {[%clk 0:00:19.3]} 31... Kf7 {[%clk
0:00:16.6]} 32. Qg4 {[%clk 0:00:18.6]} 32... Kg7 {[%clk 0:00:16.6]} 33. Qc4
{[%clk 0:00:18.9]} 33... Nf5 {[%clk 0:00:15.2]} 34. Qe6 {[%clk 0:00:18.2]} 34...
Ne7 {[%clk 0:00:13.4]} 35. Qd7 {[%clk 0:00:17.5]} 35... Kf7 {[%clk 0:00:12.8]}
36. a3 {[%clk 0:00:16.4]} 36... a5 {[%clk 0:00:12.5]} 37. Qb7 {[%clk 0:00:16.1]}
37... a4 {[%clk 0:00:08.9]} 38. Qxb6 {[%clk 0:00:16.3]} 38... Rc8 {[%clk
0:00:07.8]} 39. Qb7 {[%clk 0:00:15]} 39... Bh8 {[%clk 0:00:06.6]} 40. Qe4 {[%clk
0:00:14.4]} 40... Rb8 {[%clk 0:00:05.8]} 41. Qc4+ {[%clk 0:00:13.5]} 41... Kg7
{[%clk 0:00:05.6]} 42. Qxa4 {[%clk 0:00:14]} 42... e4 {[%clk 0:00:05.1]} 43.
Qxe4 {[%clk 0:00:14]} 43... Kf7 {[%clk 0:00:05.5]} 44. Qf3+ {[%clk 0:00:14.3]}
44... Ke8 {[%clk 0:00:05.8]} 45. Re1 {[%clk 0:00:10.3]} 45... Rxb2+ {[%clk
0:00:03.8]} 46. Kc1 {[%clk 0:00:10.7]} 46... Ra2 {[%clk 0:00:03.6]} 47. Qa8+
{[%clk 0:00:09.1]} 47... Kf7 {[%clk 0:00:03.3]} 48. Qxh8 {[%clk 0:00:09.7]}
48... Rxf2 {[%clk 0:00:03.7]} 49. Rxe7+ {[%clk 0:00:07]} 49... Kxe7 {[%clk
0:00:04.6]} 50. Qg7+ {[%clk 0:00:07.9]} 50... Kd6 {[%clk 0:00:02.5]} 51. h8=Q
{[%clk 0:00:08.8]} 51... Rf1+ {[%clk 0:00:03.1]} 52. Kc2 {[%clk 0:00:09.6]}
52... Rf2+ {[%clk 0:00:04]} 53. Kc3 {[%clk 0:00:10.5]} 53... Rf3 {[%clk
0:00:04.7]} 54. Qf6+ {[%clk 0:00:10.6]} 54... Kd5 {[%clk 0:00:05.5]} 55. Qxf3+
{[%clk 0:00:10.2]} 55... Kd6 {[%clk 0:00:06.4]} 56. Qhf6+ {[%clk 0:00:10.1]}
56... Kc7 {[%clk 0:00:07.1]} 57. Q3c6+ {[%clk 0:00:10.6]} 1-0

[Event "*** SCC Grand Prix: Titled Tuesday Blitz"]
[Site "Chess.com"]
[Date "2020.06.09"]
[Round "7"]
[White "maciejos95"]
[Black "Gerodot71"]
[Result "0-1"]
[WhiteElo "2476"]
[BlackElo "2405"]
[TimeControl "180+1"]
[EndTime "10:19:51 PDT"]
[Termination "Gerodot71 won by resignation"]

1. e4 {[%clk 0:03:00.9]} 1... e5 {[%clk 0:02:59.7]} 2. Nf3 {[%clk 0:03:00.8]}
2... Nc6 {[%clk 0:03:00]} 3. d4 {[%clk 0:03:01]} 3... exd4 {[%clk 0:03:00.2]} 4.
Nxd4 {[%clk 0:03:01.4]} 4... Bc5 {[%clk 0:03:00]} 5. Be3 {[%clk 0:03:01.1]} 5...
Qf6 {[%clk 0:02:59.9]} 6. Nb5 {[%clk 0:03:01]} 6... Bxe3 {[%clk 0:02:58.5]} 7.
fxe3 {[%clk 0:03:01]} 7... Qh4+ {[%clk 0:02:58.1]} 8. g3 {[%clk 0:03:01]} 8...
Qxe4 {[%clk 0:02:58.5]} 9. Nxc7+ {[%clk 0:03:00.5]} 9... Kd8 {[%clk 0:02:59]}
10. Nxa8 {[%clk 0:03:00.4]} 10... Nf6 {[%clk 0:02:58.9]} 11. Qd6 {[%clk
0:02:48.7]} 11... Qxh1 {[%clk 0:02:38.8]} 12. Nd2 {[%clk 0:02:47.1]} 12... Qxh2
{[%clk 0:02:33.3]} 13. O-O-O {[%clk 0:02:43.6]} 13... Qh6 {[%clk 0:02:33.5]} 14.
Nc4 {[%clk 0:02:35.8]} 14... Re8 {[%clk 0:02:28.6]} 15. Qc7+ {[%clk 0:02:11.7]}
15... Ke7 {[%clk 0:02:27.1]} 16. Nd6 {[%clk 0:02:11.9]} 16... Qxe3+ {[%clk
0:02:23.8]} 17. Kb1 {[%clk 0:02:11.8]} 17... Kf8 {[%clk 0:02:00.3]} 18. Nxe8
{[%clk 0:02:03.3]} 18... Qxe8 {[%clk 0:01:58.1]} 19. Qd6+ {[%clk 0:01:59.2]}
19... Kg8 {[%clk 0:01:57.7]} 20. Nc7 {[%clk 0:01:58.6]} 20... Qe3 {[%clk
0:01:51.6]} 21. Bc4 {[%clk 0:01:44.9]} 21... Ne4 {[%clk 0:01:29.7]} 22. Qd5
{[%clk 0:01:36]} 22... Ne5 {[%clk 0:01:25.5]} 23. Bb3 {[%clk 0:01:22.8]} 23...
d6 {[%clk 0:01:10]} 24. a3 {[%clk 0:01:09.2]} 24... h5 {[%clk 0:00:59.9]} 25.
Ka2 {[%clk 0:01:02.6]} 25... Bg4 {[%clk 0:00:54.7]} 26. Rf1 {[%clk 0:00:59.4]}
26... Nxg3 {[%clk 0:00:50.4]} 27. Rxf7 {[%clk 0:00:50.3]} 27... Nxf7 {[%clk
0:00:48.4]} 28. Qxf7+ {[%clk 0:00:50.5]} 28... Kh7 {[%clk 0:00:48.9]} 29. Ne8
{[%clk 0:00:47.8]} 29... Qe5 {[%clk 0:00:43.9]} 30. c3 {[%clk 0:00:39.6]} 30...
Bf5 {[%clk 0:00:38.2]} 31. Qg8+ {[%clk 0:00:31.7]} 31... Kh6 {[%clk 0:00:34.5]}
32. Qh8+ {[%clk 0:00:29.1]} 32... Kg6 {[%clk 0:00:32.8]} 33. Qf8 {[%clk
0:00:20.8]} 33... Be6 {[%clk 0:00:28.2]} 34. Bxe6 {[%clk 0:00:13.7]} 34... Qxe6+
{[%clk 0:00:29.1]} 35. Ka1 {[%clk 0:00:13.9]} 35... Nf5 {[%clk 0:00:25.8]} 36.
Nc7 {[%clk 0:00:12.1]} 36... Qc4 {[%clk 0:00:23.2]} 37. Qe8+ {[%clk 0:00:11]}
37... Kg5 {[%clk 0:00:23.3]} 38. Ne6+ {[%clk 0:00:10.4]} 38... Kh4 {[%clk
0:00:21.9]} 39. Qg6 {[%clk 0:00:07.2]} 39... Qg4 {[%clk 0:00:19.6]} 40. Qf7
{[%clk 0:00:04]} 40... Qd1+ {[%clk 0:00:18.8]} 41. Ka2 {[%clk 0:00:04.4]} 41...
Qd5+ {[%clk 0:00:17.2]} 42. Ka1 {[%clk 0:00:04.7]} 42... g5 {[%clk 0:00:15.3]}
43. Qg6 {[%clk 0:00:04.4]} 43... g4 {[%clk 0:00:12.4]} 44. Qg5+ {[%clk
0:00:04.8]} 44... Kg3 {[%clk 0:00:10.5]} 45. Qf4+ {[%clk 0:00:04.9]} 45... Kg2
{[%clk 0:00:09.9]} 46. Nd4 {[%clk 0:00:03.9]} 46... Nxd4 {[%clk 0:00:09.5]} 47.
cxd4 {[%clk 0:00:04.8]} 47... Qf3 {[%clk 0:00:08.1]} 48. Qd2+ {[%clk 0:00:04.8]}
48... Kg3 {[%clk 0:00:07.3]} 49. Qg5 {[%clk 0:00:05.1]} 49... h4 {[%clk
0:00:07.1]} 50. Qg6 {[%clk 0:00:04.7]} 50... h3 {[%clk 0:00:07.5]} 51. Qxd6+
{[%clk 0:00:04.8]} 51... Kg2 {[%clk 0:00:08.4]} 52. Qb4 {[%clk 0:00:04.6]} 52...
h2 {[%clk 0:00:08.6]} 53. Qd2+ {[%clk 0:00:05]} 53... Qf2 {[%clk 0:00:09]} 54.
Qg5 {[%clk 0:00:05.5]} 54... h1=Q+ {[%clk 0:00:09]} 55. Ka2 {[%clk 0:00:06.1]}
55... Qh3 {[%clk 0:00:09.5]} 56. Qd5+ {[%clk 0:00:05.7]} 56... Qhf3 {[%clk
0:00:10.4]} 57. Qg5 {[%clk 0:00:05.8]} 57... Qxd4 {[%clk 0:00:09.1]} 58. Qg8
{[%clk 0:00:05.5]} 58... Qdd5+ {[%clk 0:00:09.3]} 59. Qxd5 {[%clk 0:00:05.4]}
59... Qxd5+ {[%clk 0:00:10.2]} 0-1

[Event "*** SCC Grand Prix: Titled Tuesday Blitz"]
[Site "Chess.com"]
[Date "2020.06.09"]
[Round "7"]
[White "m-garcett"]
[Black "Vandros57"]
[Result "1/2-1/2"]
[WhiteElo "2079"]
[BlackElo "2228"]
[TimeControl "180+1"]
[EndTime "10:19:52 PDT"]
[Termination "Game drawn by repetition"]

1. e4 {[%clk 0:03:00.9]} 1... c5 {[%clk 0:02:58.7]} 2. Nf3 {[%clk 0:02:57]} 2...
e6 {[%clk 0:02:58]} 3. d4 {[%clk 0:02:56.8]} 3... cxd4 {[%clk 0:02:57.4]} 4.
Nxd4 {[%clk 0:02:57.7]} 4... Nf6 {[%clk 0:02:56.8]} 5. Bd3 {[%clk 0:02:58]} 5...
Nc6 {[%clk 0:02:55.2]} 6. Nxc6 {[%clk 0:02:55.8]} 6... bxc6 {[%clk 0:02:54.4]}
7. Qe2 {[%clk 0:02:56.7]} 7... d5 {[%clk 0:02:52.7]} 8. e5 {[%clk 0:02:56.8]}
8... Nd7 {[%clk 0:02:51.8]} 9. O-O {[%clk 0:02:56.7]} 9... g6 {[%clk 0:02:50.4]}
10. c4 {[%clk 0:02:56.5]} 10... Bg7 {[%clk 0:02:49.3]} 11. f4 {[%clk 0:02:44]}
11... O-O {[%clk 0:02:48.2]} 12. Nc3 {[%clk 0:02:43.9]} 12... Nc5 {[%clk
0:02:28]} 13. Bc2 {[%clk 0:02:40.9]} 13... a5 {[%clk 0:02:19.4]} 14. Kh1 {[%clk
0:02:40.4]} 14... Ba6 {[%clk 0:02:16.5]} 15. b3 {[%clk 0:02:38.4]} 15... dxc4
{[%clk 0:02:13.1]} 16. bxc4 {[%clk 0:02:37]} 16... Nd7 {[%clk 0:01:59.9]} 17.
Ne4 {[%clk 0:02:34.2]} 17... Qc7 {[%clk 0:01:48.7]} 18. Ba3 {[%clk 0:02:32.9]}
18... Rfd8 {[%clk 0:01:46.5]} 19. Rfd1 {[%clk 0:02:22.6]} 19... c5 {[%clk
0:01:33.7]} 20. Rab1 {[%clk 0:02:14.4]} 20... Rab8 {[%clk 0:01:30.6]} 21. Nd6
{[%clk 0:02:11.6]} 21... Rxb1 {[%clk 0:01:25.7]} 22. Rxb1 {[%clk 0:02:11]} 22...
Rb8 {[%clk 0:01:23.9]} 23. Rxb8+ {[%clk 0:01:56.3]} 23... Qxb8 {[%clk
0:01:20.6]} 24. Qd3 {[%clk 0:01:54.6]} 24... Qa7 {[%clk 0:01:13.3]} 25. Ba4
{[%clk 0:01:49.9]} 25... Bf8 {[%clk 0:01:06.7]} 26. Nxf7 {[%clk 0:01:43.1]}
26... Nb6 {[%clk 0:00:57.6]} 27. Be8 {[%clk 0:01:34.6]} 27... Qe7 {[%clk
0:00:49]} 28. Nd6 {[%clk 0:01:32.4]} 28... Nxc4 {[%clk 0:00:43.3]} 29. Nxc4
{[%clk 0:01:27]} 29... Qxe8 {[%clk 0:00:41.8]} 30. Qc3 {[%clk 0:01:11.6]} 30...
Qb5 {[%clk 0:00:39.7]} 31. Nd2 {[%clk 0:01:07.3]} 31... Qe2 {[%clk 0:00:32.1]}
32. h3 {[%clk 0:01:05.1]} 32... Bb7 {[%clk 0:00:22.4]} 33. Nf3 {[%clk
0:00:54.7]} 33... Bxf3 {[%clk 0:00:21.5]} 34. Qxf3 {[%clk 0:00:55.4]} 34... Qxf3
{[%clk 0:00:19.1]} 35. gxf3 {[%clk 0:00:56.3]} 35... Kf7 {[%clk 0:00:18]} 36.
Kg2 {[%clk 0:00:55.7]} 36... Ke8 {[%clk 0:00:18.1]} 37. Kf2 {[%clk 0:00:55.8]}
37... Kd7 {[%clk 0:00:18.2]} 38. Ke2 {[%clk 0:00:55.5]} 38... Kc6 {[%clk
0:00:18.5]} 39. Kd3 {[%clk 0:00:55.8]} 39... Kd5 {[%clk 0:00:18.4]} 40. Kc3
{[%clk 0:00:54.2]} 40... Be7 {[%clk 0:00:17.9]} 41. Bc1 {[%clk 0:00:52.8]} 41...
a4 {[%clk 0:00:16.3]} 42. Be3 {[%clk 0:00:49.6]} 42... Bd8 {[%clk 0:00:15.5]}
43. Bf2 {[%clk 0:00:44.4]} 43... Ba5+ {[%clk 0:00:15.1]} 44. Kc2 {[%clk
0:00:43.8]} 44... Kc4 {[%clk 0:00:14.6]} 45. Be3 {[%clk 0:00:43]} 45... Bb4
{[%clk 0:00:14.4]} 46. Bf2 {[%clk 0:00:42.3]} 46... Ba5 {[%clk 0:00:13.7]} 47.
Be3 {[%clk 0:00:42.3]} 47... Bd8 {[%clk 0:00:13.6]} 48. Bf2 {[%clk 0:00:41.8]}
48... Be7 {[%clk 0:00:13.7]} 49. Bg3 {[%clk 0:00:41.1]} 49... Bd8 {[%clk
0:00:13.1]} 50. h4 {[%clk 0:00:40.1]} 50... Kb4 {[%clk 0:00:12.2]} 51. Bf2
{[%clk 0:00:36.6]} 51... h5 {[%clk 0:00:12]} 52. Kb2 {[%clk 0:00:34.3]} 52... c4
{[%clk 0:00:11.5]} 53. a3+ {[%clk 0:00:33.5]} 53... Kb5 {[%clk 0:00:11.2]} 54.
Kc3 {[%clk 0:00:34.4]} 54... Ba5+ {[%clk 0:00:10]} 55. Kc2 {[%clk 0:00:34.7]}
55... Kc6 {[%clk 0:00:09.1]} 56. Bd4 {[%clk 0:00:32.7]} 56... Kd5 {[%clk
0:00:09.2]} 57. Bf2 {[%clk 0:00:32.1]} 57... Bc7 {[%clk 0:00:08.4]} 58. Kc3
{[%clk 0:00:30.7]} 58... Bd8 {[%clk 0:00:08.1]} 59. Kb4 {[%clk 0:00:27.7]} 59...
Be7+ {[%clk 0:00:07.1]} 60. Kxa4 {[%clk 0:00:26.8]} 60... Bc5 {[%clk 0:00:07]}
61. Be1 {[%clk 0:00:24.4]} 61... Kd4 {[%clk 0:00:05.7]} 62. Bf2+ {[%clk
0:00:22.5]} 62... Kd5 {[%clk 0:00:05.8]} 63. Be1 {[%clk 0:00:22.6]} 63... Kd4
{[%clk 0:00:05.9]} 64. Bf2+ {[%clk 0:00:18.2]} 64... Kd5 {[%clk 0:00:05.8]}
1/2-1/2